[Event "FIDE World Junior U20-ch Girls 2025"]
[Site "Petrovac"]
[Date "2025.02.28"]
[Round "3.23"]
[White "Gasparyan, Milena"]
[Black "Abdinova, Narmin"]
[Result "1/2-1/2"]
[Annotator "ChessBase"]
[ECO "C54"]
[WhiteElo "1986"]
[BlackElo "2186"]
[PlyCount "143"]
[EventDate "2025.02.23"]
[EventType "swiss"]
[EventCountry "MNE"]
[SourceTitle "playchess.com"]
[Source "ChessBase"]
[SourceQuality "1"]
[TimeControl "40/5400+30:1800+30"]

1. e4 {[%emt 0:00:04]} e5 {[%emt 0:00:11]} 2. Nf3 {[%emt 0:00:06]} Nc6 {[%emt 0:00:09]} 3. Bc4 {[%emt 0:00:10]} Nf6 {[%emt 0:00:17]} 4. d3 {[%emt 0:00:13]} Bc5 {[%emt 0:00:14]} 5. c3 {[%emt 0:00:19]} d6 {[%emt 0:00:15]} 6. O-O {[%emt 0:00:13]} O-O {[%emt 0:00:54]} 7. h3 {[%emt 0:00:17]} h6 {[%emt 0:01:45]} 8. Re1 {[%emt 0:00:32]} Bb6 {[%emt 0:03:30]} 9. Bb3 {[%emt 0:01:27]} Ne7 {[%emt 0:03:40]} 10. Nbd2 {[%emt 0:03:53]} Ng6 {[%emt 0:07:57]} 11. d4 {[%emt 0:01:36]} Re8 {[%emt 0:02:46]} 12. Bc2 {[%emt 0:04:38]} c6 {[%emt 0:08:43]} 13. Nf1 {[%emt 0:09:05]} Nh5 {[%emt 0:09:24]} 14. Be3 {[%emt 0:22:22]} Qf6 {[%emt 0:09:41]} 15. Nxe5 {[%emt 0:09:57]} dxe5 {[%emt 0:00:20]} 16. Qxh5 {[%emt 0:00:13]} exd4 {[%emt 0:00:16]} 17. cxd4 {[%emt 0:00:13]} Bxd4 {[%emt 0:00:14]} 18. Bxd4 {[%emt 0:00:04]} Qxd4 {[%emt 0:00:07]} 19. e5 {[%emt 0:13:07]} Nf4 {[%emt 0:06:37]} 20. Qf3 {[%emt 0:00:16]} Nd5 {[%emt 0:15:57]} 21. Qd3 {[%emt 0:07:55]} Qxd3 {[%emt 0:05:14]} 22. Bxd3 {[%emt 0:00:06]} Re7 {[%emt 0:04:58]} 23. Nd2 {[%emt 0:07:57]} Be6 {[%emt 0:01:28]} 24. a3 {[%emt 0:02:24]} Rae8 {[%emt 0:08:49]} 25. Rad1 {[%emt 0:07:42]} Nf4 {[%emt 0:01:37]} 26. Bc4 {[%emt 0:00:33]} Ng6 {[%emt 0:04:13]} 27. Bxe6 {[%emt 0:04:47]} Rxe6 {[%emt 0:00:02]} 28. Nc4 {[%emt 0:00:13]} Nxe5 {[%emt 0:00:15]} 29. Rxe5 {[%emt 0:00:20]} Rxe5 {[%emt 0:00:07]} 30. Nxe5 {[%emt 0:00:06]} Rxe5 {[%emt 0:00:04]} 31. Rd8+ {[%emt 0:00:59]} Kh7 {[%emt 0:00:02]} 32. Rd7 {[%emt 0:00:19]} Rb5 {[%emt 0:00:04]} 33. b4 {[%emt 0:00:07]} Kg6 {[%emt 0:00:02]} 34. f3 {[%emt 0:00:32]} Kf6 {[%emt 0:00:54]} 35. Kf2 {[%emt 0:00:31]} g5 {[%emt 0:04:41]} 36. g4 {[%emt 0:01:02]} Ke6 {[%emt 0:00:05]} 37. Rc7 {[%emt 0:00:06]} Kf6 {[%emt 0:00:53]} 38. Kg3 {[%emt 0:01:35]} a5 {[%emt 0:01:38]} 39. bxa5 {[%emt 0:00:19]} Rxa5 {[%emt 0:00:05]} 40. Rxb7 {[%emt 0:00:09]} Rxa3 {[%emt 0:00:04]} 41. Rc7 {[%emt 0:31:04]} Rc3 {[%emt 0:30:04]} 42. Rc8 {[%emt 0:02:32]} Rc2 {[%emt 0:00:00]} 43. Rh8 {[%emt 0:00:00]} Kg7 {[%emt 0:00:00]} 44. Rc8 {[%emt 0:00:00]} c5 {[%emt 0:00:00]} 45. h4 {[%emt 0:00:00]} c4 {[%emt 0:00:00]} 46. hxg5 {[%emt 0:00:00]} hxg5 {[%emt 0:00:00]} 47. Re8 {[%emt 0:00:00]} c3 {[%emt 0:00:00]} 48. Re3 {[%emt 0:00:00]} Rc1 {[%emt 0:00:00]} 49. Kg2 {[%emt 0:00:00]} Kf6 {[%emt 0:00:00]} 50. Kh2 {[%emt 0:00:00]} Kg6 {[%emt 0:00:00]} 51. Kg2 {[%emt 0:00:00]} Kf6 {[%emt 0:01:18]} 52. Kh2 {[%emt 0:00:00]} Kg7 {[%emt 0:00:01]} 53. Kg2 {[%emt 0:00:00]} f6 {[%emt 0:01:47]} 54. Kh2 {[%emt 0:00:00]} Kf8 {[%emt 0:00:07]} 55. Kg2 {[%emt 0:00:00]} Kf7 {[%emt 0:00:02]} 56. Kh2 {[%emt 0:00:00]} f5 {[%emt 0:01:26]} 57. Re5 {[%emt 0:00:00]} fxg4 {[%emt 0:00:23]} 58. fxg4 {[%emt 0:00:00]} c2 {[%emt 0:00:49]} 59. Rc5 {[%emt 0:00:00]} Ke6 {[%emt 0:00:17]} 60. Kg2 {[%emt 0:00:00]} Kd6 {[%emt 0:00:16]} 61. Rc8 {[%emt 0:00:00]} Ke5 {[%emt 0:00:07]} 62. Rc7 {[%emt 0:00:21]} Kf4 {[%emt 0:00:23]} 63. Rc4+ {[%emt 0:00:47]} Ke3 {[%emt 0:00:07]} 64. Rc8 {[%emt 0:00:03]} Kd3 {[%emt 0:00:46]} 65. Rd8+ {[%emt 0:00:06]} Kc3 {[%emt 0:01:25]} 66. Rc8+ {[%emt 0:00:05]} Kd4 {[%emt 0:00:03]} 67. Rd8+ {[%emt 0:00:06]} Ke3 {[%emt 0:00:08]} 68. Rc8 {[%emt 0:00:09]} Ke4 {[%emt 0:00:36]} 69. Rc7 {[%emt 0:00:14]} Ke3 {[%emt 0:00:12]} 70. Rc8 {[%emt 0:00:08]} Re1 {[%emt 0:01:34]} 71. Rxc2 {[%emt 0:00:08]} Rc1 {[%emt 0:00:38]} 72. Rc8 {[%emt 0:00:30]} 1/2-1/2

[Event "FIDE World Junior U20-ch Girls 2025"]
[Site "Petrovac"]
[Date "2025.02.28"]
[Round "3.24"]
[White "Kanyamarala, Trisha"]
[Black "Zeliantsova, Kseniya"]
[Result "1-0"]
[Annotator "ChessBase"]
[ECO "E71"]
[WhiteElo "2178"]
[BlackElo "1999"]
[PlyCount "87"]
[EventDate "2025.02.23"]
[EventType "swiss"]
[EventCountry "MNE"]
[SourceTitle "playchess.com"]
[Source "ChessBase"]
[SourceQuality "1"]
[TimeControl "40/5400+30:1800+30"]

1. d4 {[%emt 0:00:05]} Nf6 {[%emt 0:00:05]} 2. c4 {[%emt 0:00:11]} g6 {[%emt 0:00:06]} 3. Nc3 {[%emt 0:00:06]} Bg7 {[%emt 0:00:05]} 4. e4 {[%emt 0:00:08]} d6 {[%emt 0:00:10]} 5. h3 {[%emt 0:00:25]} O-O {[%emt 0:00:54]} 6. Be3 {[%emt 0:00:12]} c5 {[%emt 0:01:31]} 7. Nf3 {[%emt 0:00:12]} cxd4 {[%emt 0:01:26]} 8. Nxd4 {[%emt 0:00:08]} Qa5 {[%emt 0:02:46]} 9. Bd3 {[%emt 0:04:17]} Nc6 {[%emt 0:00:34]} 10. O-O {[%emt 0:04:02]} Nxd4 {[%emt 0:07:23]} 11. Bxd4 {[%emt 0:00:10]} Nh5 {[%emt 0:02:20]} 12. Bxg7 {[%emt 0:04:30]} Kxg7 {[%emt 0:01:29]} 13. Be2 {[%emt 0:11:00]} Nf4 {[%emt 0:03:53]} 14. Nd5 {[%emt 0:00:49]} Nxe2+ {[%emt 0:08:11]} 15. Qxe2 {[%emt 0:00:07]} e6 {[%emt 0:01:38]} 16. b4 {[%emt 0:11:28]} Qa3 {[%emt 0:17:53]} 17. Nc7 {[%emt 0:00:29]} Rb8 {[%emt 0:01:00]} 18. Qd2 {[%emt 0:02:07]} Rd8 {[%emt 0:04:31]} 19. c5 {[%emt 0:08:34]} d5 {[%emt 0:05:02]} 20. exd5 {[%emt 0:03:14]} exd5 {[%emt 0:03:08]} 21. Qd4+ {[%emt 0:02:59]} Kg8 {[%emt 0:03:19]} 22. Nxd5 {[%emt 0:06:20]} Be6 {[%emt 0:01:53]} 23. Nf6+ {[%emt 0:00:31]} Kg7 {[%emt 0:00:24]} 24. Qe5 {[%emt 0:13:02]} Rbc8 {[%emt 0:02:00]} 25. Nh5+ {[%emt 0:02:41]} Kf8 {[%emt 0:00:58]} 26. Qh8+ {[%emt 0:00:57]} Ke7 {[%emt 0:00:06]} 27. Qf6+ {[%emt 0:00:11]} Kf8 {[%emt 0:00:51]} 28. Nf4 {[%emt 0:02:01]} Kg8 {[%emt 0:03:59]} 29. Nxe6 {[%emt 0:00:18]} fxe6 {[%emt 0:00:03]} 30. Qxe6+ {[%emt 0:00:08]} Kh8 {[%emt 0:00:01]} 31. Rad1 {[%emt 0:01:41]} Qc3 {[%emt 0:02:56]} 32. Rxd8+ {[%emt 0:03:31]} Rxd8 {[%emt 0:00:04]} 33. Qe7 {[%emt 0:00:11]} Qd4 {[%emt 0:02:04]} 34. Qxb7 {[%emt 0:00:39]} a5 {[%emt 0:02:00]} 35. a3 {[%emt 0:00:38]} axb4 {[%emt 0:00:10]} 36. axb4 {[%emt 0:00:06]} Rd7 {[%emt 0:01:05]} 37. Qc8+ {[%emt 0:01:24]} Kg7 {[%emt 0:00:48]} 38. c6 {[%emt 0:00:27]} Re7 {[%emt 0:00:52]} 39. Qb8 {[%emt 0:03:17]} Qc3 {[%emt 0:01:43]} 40. Qd6 {[%emt 0:02:28]} Rf7 {[%emt 0:01:05]} 41. b5 {[%emt 0:30:45]} Qc4 {[%emt 0:30:47]} 42. b6 {[%emt 0:01:14]} Rf6 {[%emt 0:00:29]} 43. Qe7+ {[%emt 0:00:07]} Rf7 {[%emt 0:00:48]} 44. Qe5+ {[%emt 0:00:06]} 1-0

[Event "FIDE World Junior U20-ch Girls 2025"]
[Site "Petrovac"]
[Date "2025.02.28"]
[Round "3.25"]
[White "Smietanska, Wiktoria"]
[Black "Trifoi, Mihaela-Ioana"]
[Result "1/2-1/2"]
[Annotator "ChessBase"]
[ECO "B15"]
[WhiteElo "2170"]
[BlackElo "1990"]
[PlyCount "119"]
[EventDate "2025.02.23"]
[EventType "swiss"]
[EventCountry "MNE"]
[SourceTitle "playchess.com"]
[Source "ChessBase"]
[SourceQuality "1"]
[TimeControl "40/5400+30:1800+30"]

1. e4 {[%emt 0:00:03]} c6 {[%emt 0:00:15]} 2. d4 {[%emt 0:00:07]} d5 {[%emt 0:00:05]} 3. Nd2 {[%emt 0:00:07]} dxe4 {[%emt 0:00:08]} 4. Nxe4 {[%emt 0:00:05]} Nf6 {[%emt 0:00:06]} 5. Nxf6+ {[%emt 0:00:09]} exf6 {[%emt 0:00:06]} 6. c3 {[%emt 0:00:49]} Bd6 {[%emt 0:00:08]} 7. Bd3 {[%emt 0:00:24]} O-O {[%emt 0:00:27]} 8. Ne2 {[%emt 0:00:33]} Re8 {[%emt 0:01:46]} 9. O-O {[%emt 0:00:33]} Nd7 {[%emt 0:00:36]} 10. Ng3 {[%emt 0:01:05]} g6 {[%emt 0:01:28]} 11. Ne4 {[%emt 0:12:39]} Be7 {[%emt 0:04:16]} 12. Re1 {[%emt 0:07:11]} Nf8 {[%emt 0:07:44]} 13. Be3 {[%emt 0:11:18]} b6 {[%emt 0:16:53]} 14. f4 {[%emt 0:07:02]} Qc7 {[%emt 0:09:19]} 15. Nd2 {[%emt 0:09:00]} Bd6 {[%emt 0:01:55]} 16. Qf3 {[%emt 0:06:36]} f5 {[%emt 0:02:25]} 17. Nc4 {[%emt 0:01:56]} Bb7 {[%emt 0:02:18]} 18. Rad1 {[%emt 0:12:18]} Rad8 {[%emt 0:05:32]} 19. Nxd6 {[%emt 0:08:30]} Rxd6 {[%emt 0:01:09]} 20. Qf2 {[%emt 0:02:26]} Nd7 {[%emt 0:08:33]} 21. c4 {[%emt 0:06:40]} Nf6 {[%emt 0:02:09]} 22. Bd2 {[%emt 0:00:56]} Rde6 {[%emt 0:04:15]} 23. Rxe6 {[%emt 0:01:18]} Rxe6 {[%emt 0:00:06]} 24. Re1 {[%emt 0:00:29]} Ng4 {[%emt 0:02:46]} 25. Qf3 {[%emt 0:02:09]} Qd7 {[%emt 0:00:51]} 26. Rxe6 {[%emt 0:02:42]} fxe6 {[%emt 0:00:06]} 27. Bc3 {[%emt 0:02:33]} c5 {[%emt 0:00:51]} 28. d5 {[%emt 0:02:07]} exd5 {[%emt 0:00:10]} 29. cxd5 {[%emt 0:00:08]} Bxd5 {[%emt 0:01:28]} 30. Qe2 {[%emt 0:01:19]} Qe6 {[%emt 0:01:20]} 31. Qxe6+ {[%emt 0:01:13]} Bxe6 {[%emt 0:00:06]} 32. b3 {[%emt 0:00:26]} Kf7 {[%emt 0:00:22]} 33. h3 {[%emt 0:01:17]} Nf6 {[%emt 0:01:37]} 34. Kf2 {[%emt 0:00:38]} Nd5 {[%emt 0:01:03]} 35. Bd2 {[%emt 0:00:02]} Nb4 {[%emt 0:02:49]} 36. Bxb4 {[%emt 0:00:59]} cxb4 {[%emt 0:00:05]} 37. Ke3 {[%emt 0:00:10]} Ke7 {[%emt 0:06:21]} 38. Kd4 {[%emt 0:00:19]} Kd6 {[%emt 0:00:07]} 39. g3 {[%emt 0:01:07]} Bd7 {[%emt 0:01:48]} 40. Bc4 {[%emt 0:00:32]} Be8 {[%emt 0:04:49]} 41. h4 {[%emt 0:02:31]} b5 {[%emt 0:02:33]} 42. Bg8 {[%emt 0:07:34]} h6 {[%emt 0:01:26]} 43. Bd5 {[%emt 0:01:41]} a5 {[%emt 0:01:28]} 44. Bf3 {[%emt 0:02:03]} Bf7 {[%emt 0:00:45]} 45. Be2 {[%emt 0:01:45]} a4 {[%emt 0:02:03]} 46. Bd1 {[%emt 0:02:56]} a3 {[%emt 0:00:58]} 47. Bc2 {[%emt 0:01:18]} Bd5 {[%emt 0:00:33]} 48. Bb1 {[%emt 0:01:07]} Bf3 {[%emt 0:01:44]} 49. Bc2 {[%emt 0:01:52]} Bg4 {[%emt 0:01:49]} 50. Bd3 {[%emt 0:01:55]} Bd1 {[%emt 0:01:05]} 51. Bb1 {[%emt 0:01:22]} h5 {[%emt 0:01:05]} 52. Kd3 {[%emt 0:01:14]} Kc5 {[%emt 0:02:45]} 53. Bc2 {[%emt 0:01:29]} Bf3 {[%emt 0:04:55]} 54. Ke3 {[%emt 0:01:42]} Bg2 {[%emt 0:04:42]} 55. Bd3 {[%emt 0:01:04]} Bd5 {[%emt 0:00:13]} 56. Bc2 {[%emt 0:00:14]} Bc4 {[%emt 0:01:02]} 57. Bd1 {[%emt 0:02:09]} Bf1 {[%emt 0:01:18]} 58. Bc2 {[%emt 0:00:31]} Kd5 {[%emt 0:01:03]} 59. Bd3 {[%emt 0:00:36]} Bxd3 {[%emt 0:03:10]} 60. Kxd3 {[%emt 0:00:39]} 1/2-1/2

[Event "FIDE World Junior U20-ch Girls 2025"]
[Site "Petrovac"]
[Date "2025.02.28"]
[Round "3.26"]
[White "Braeutigam, Katerina"]
[Black "Wang, Qinxuanyi"]
[Result "0-1"]
[Annotator "ChessBase"]
[ECO "D00"]
[WhiteElo "1981"]
[BlackElo "2165"]
[PlyCount "84"]
[EventDate "2025.02.23"]
[EventType "swiss"]
[EventCountry "MNE"]
[SourceTitle "playchess.com"]
[Source "ChessBase"]
[SourceQuality "1"]
[TimeControl "40/5400+30:1800+30"]

1. d4 {[%emt 0:00:03]} d5 {[%emt 0:00:06]} 2. Bf4 {[%emt 0:00:05]} Nf6 {[%emt 0:00:05]} 3. e3 {[%emt 0:00:07]} c5 {[%emt 0:00:09]} 4. c3 {[%emt 0:00:06]} Nc6 {[%emt 0:00:08]} 5. Nd2 {[%emt 0:00:12]} Qb6 {[%emt 0:00:38]} 6. Qb3 {[%emt 0:00:07]} c4 {[%emt 0:02:13]} 7. Qc2 {[%emt 0:00:07]} Nh5 {[%emt 0:15:08]} 8. Be2 {[%emt 0:08:15]} Nxf4 {[%emt 0:00:56]} 9. exf4 {[%emt 0:00:02]} g6 {[%emt 0:03:01]} 10. b3 {[%emt 0:05:37]} Bf5 {[%emt 0:02:43]} 11. Qb2 {[%emt 0:02:11]} Rc8 {[%emt 0:02:44]} 12. Ngf3 {[%emt 0:00:56]} Bg7 {[%emt 0:00:51]} 13. O-O {[%emt 0:02:20]} Nxd4 {[%emt 0:05:09]} 14. Nxd4 {[%emt 0:03:01]} Bxd4 {[%emt 0:00:08]} 15. cxd4 {[%emt 0:12:58]} c3 {[%emt 0:00:07]} 16. Qc1 {[%emt 0:00:25]} cxd2 {[%emt 0:00:13]} 17. Qxd2 {[%emt 0:00:04]} Rc2 {[%emt 0:04:14]} 18. Qe3 {[%emt 0:07:45]} O-O {[%emt 0:06:09]} 19. g4 {[%emt 0:28:39]} Bd7 {[%emt 0:00:27]} 20. Rfe1 {[%emt 0:18:16]} e6 {[%emt 0:06:47]} 21. Bd1 {[%emt 0:03:42]} Rc6 {[%emt 0:00:32]} 22. h4 {[%emt 0:01:30]} Rfc8 {[%emt 0:01:00]} 23. Qd2 {[%emt 0:02:53]} Rc3 {[%emt 0:03:56]} 24. Kg2 {[%emt 0:01:48]} Qb4 {[%emt 0:01:00]} 25. Re2 {[%emt 0:00:18]} Bb5 {[%emt 0:01:06]} 26. a3 {[%emt 0:00:06]} Qd6 {[%emt 0:05:44]} 27. Re3 {[%emt 0:01:23]} Qxf4 {[%emt 0:00:09]} 28. Qxc3 {[%emt 0:00:56]} Rxc3 {[%emt 0:00:05]} 29. Rxc3 {[%emt 0:00:06]} Qxd4 {[%emt 0:00:26]} 30. Rac1 {[%emt 0:00:10]} Bc6 {[%emt 0:00:43]} 31. h5 {[%emt 0:01:00]} Qf4 {[%emt 0:00:22]} 32. f3 {[%emt 0:00:36]} d4 {[%emt 0:00:13]} 33. Rc4 {[%emt 0:00:20]} Qxg4+ {[%emt 0:00:08]} 34. Kf2 {[%emt 0:00:22]} Qh4+ {[%emt 0:00:35]} 35. Kg2 {[%emt 0:00:22]} Qg5+ {[%emt 0:00:07]} 36. Kf2 {[%emt 0:00:34]} Qe3+ {[%emt 0:00:21]} 37. Kg2 {[%emt 0:00:49]} gxh5 {[%emt 0:00:19]} 38. a4 {[%emt 0:00:44]} h4 {[%emt 0:00:17]} 39. R4c2 {[%emt 0:00:27]} d3 {[%emt 0:00:26]} 40. Rc4 {[%emt 0:00:30]} f5 {[%emt 0:00:33]} 41. b4 {[%emt 0:04:50]} Qd2+ {[%emt 0:00:31]} 42. Kh3 {[%emt 0:08:16]} Qg5 {[%emt 0:00:06]} 0-1

[Event "FIDE World Junior U20-ch Girls 2025"]
[Site "Petrovac"]
[Date "2025.02.28"]
[Round "3.27"]
[White "Yildiz, Elif Zeren"]
[Black "Shohradova, Leyla"]
[Result "1-0"]
[Annotator "ChessBase"]
[ECO "C16"]
[WhiteElo "2160"]
[BlackElo "1986"]
[PlyCount "75"]
[EventDate "2025.02.23"]
[EventType "swiss"]
[EventCountry "MNE"]
[SourceTitle "playchess.com"]
[Source "ChessBase"]
[SourceQuality "1"]
[TimeControl "40/5400+30:1800+30"]

1. e4 {[%emt 0:00:02]} e6 {[%emt 0:00:05]} 2. d4 {[%emt 0:00:06]} d5 {[%emt 0:00:05]} 3. Nc3 {[%emt 0:00:07]} Bb4 {[%emt 0:00:07]} 4. e5 {[%emt 0:00:08]} Ne7 {[%emt 0:00:17]} 5. a3 {[%emt 0:00:06]} Bxc3+ {[%emt 0:00:06]} 6. bxc3 {[%emt 0:00:06]} b6 {[%emt 0:00:06]} 7. Qg4 {[%emt 0:00:13]} Ng6 {[%emt 0:00:29]} 8. h4 {[%emt 0:00:06]} h5 {[%emt 0:00:17]} 9. Qg3 {[%emt 0:00:06]} Ba6 {[%emt 0:01:13]} 10. Bxa6 {[%emt 0:00:06]} Nxa6 {[%emt 0:00:05]} 11. Ne2 {[%emt 0:00:05]} Qd7 {[%emt 0:11:23]} 12. a4 {[%emt 0:00:09]} Nb8 {[%emt 0:02:35]} 13. a5 {[%emt 0:11:10]} Nc6 {[%emt 0:05:30]} 14. axb6 cxb6 {[%emt 0:00:06]} 15. O-O {[%emt 0:08:47]} O-O-O {[%emt 0:19:55]} 16. Bg5 {[%emt 0:09:38]} Rdf8 {[%emt 0:06:14]} 17. Qd3 {[%emt 0:09:23]} Qb7 {[%emt 0:08:30]} 18. Rfb1 {[%emt 0:02:07]} Kb8 {[%emt 0:04:42]} 19. Nc1 {[%emt 0:08:49]} f6 {[%emt 0:07:52]} 20. Qxg6 {[%emt 0:02:47]} Ne7 {[%emt 0:01:47]} 21. Qd3 {[%emt 0:00:47]} fxg5 {[%emt 0:00:53]} 22. Nb3 {[%emt 0:05:16]} Nc8 {[%emt 0:02:10]} 23. Nc5 {[%emt 0:09:15]} Qf7 {[%emt 0:02:47]} 24. f3 {[%emt 0:01:22]} Kc7 {[%emt 0:11:31]} 25. Qb5 {[%emt 0:08:44]} Kd8 {[%emt 0:08:26]} 26. Qc6 {[%emt 0:00:22]} Re8 {[%emt 0:00:19]} 27. Nb7+ {[%emt 0:01:37]} Ke7 {[%emt 0:00:04]} 28. Nd6 {[%emt 0:00:04]} Qg6 {[%emt 0:00:43]} 29. Qc7+ {[%emt 0:04:36]} Kf8 {[%emt 0:00:07]} 30. Nxe8 {[%emt 0:00:30]} Qxe8 {[%emt 0:00:05]} 31. hxg5 {[%emt 0:01:00]} h4 {[%emt 0:00:11]} 32. g6 {[%emt 0:03:21]} Rh6 {[%emt 0:02:39]} 33. Rxa7 {[%emt 0:05:31]} Nxa7 {[%emt 0:00:49]} 34. Rxb6 {[%emt 0:00:02]} Nb5 {[%emt 0:00:27]} 35. Rxb5 {[%emt 0:00:12]} Rxg6 {[%emt 0:01:50]} 36. Rb8 {[%emt 0:00:06]} h3 {[%emt 0:00:05]} 37. Rxe8+ {[%emt 0:00:30]} Kxe8 {[%emt 0:00:07]} 38. g4 {[%emt 0:00:16]} 1-0

[Event "FIDE World Junior U20-ch Girls 2025"]
[Site "Petrovac"]
[Date "2025.02.28"]
[Round "3.28"]
[White "Liuviann, Cecilia Natalie"]
[Black "Cornileau, Juliette"]
[Result "1/2-1/2"]
[Annotator "ChessBase"]
[ECO "C97"]
[WhiteElo "1964"]
[BlackElo "2144"]
[PlyCount "107"]
[EventDate "2025.02.23"]
[EventType "swiss"]
[EventCountry "MNE"]
[SourceTitle "playchess.com"]
[Source "ChessBase"]
[SourceQuality "1"]
[TimeControl "40/5400+30:1800+30"]

1. e4 {[%emt 0:00:07]} e5 {[%emt 0:01:33]} 2. Nf3 {[%emt 0:00:16]} Nc6 {[%emt 0:00:04]} 3. Bb5 {[%emt 0:00:35]} a6 {[%emt 0:00:29]} 4. Ba4 {[%emt 0:00:07]} Nf6 {[%emt 0:00:05]} 5. O-O {[%emt 0:00:08]} Be7 {[%emt 0:03:26]} 6. Re1 {[%emt 0:00:20]} b5 {[%emt 0:00:05]} 7. Bb3 {[%emt 0:00:05]} d6 {[%emt 0:00:04]} 8. c3 {[%emt 0:00:07]} O-O {[%emt 0:00:20]} 9. h3 {[%emt 0:00:06]} Na5 {[%emt 0:00:23]} 10. Bc2 {[%emt 0:00:34]} c5 {[%emt 0:00:04]} 11. d4 {[%emt 0:00:11]} Qc7 {[%emt 0:00:19]} 12. Nbd2 {[%emt 0:01:51]} Be6 {[%emt 0:03:32]} 13. d5 {[%emt 0:03:52]} Bd7 {[%emt 0:00:04]} 14. Nf1 {[%emt 0:00:46]} c4 {[%emt 0:00:38]} 15. N3h2 {[%emt 0:03:11]} Ne8 {[%emt 0:18:07]} 16. Ng3 {[%emt 0:03:35]} Nb7 {[%emt 0:08:54]} 17. Qf3 {[%emt 0:16:42]} g6 {[%emt 0:19:11]} 18. Ng4 {[%emt 0:06:22]} f6 {[%emt 0:00:56]} 19. h4 {[%emt 0:07:46]} Qc8 {[%emt 0:04:43]} 20. Nh6+ {[%emt 0:02:29]} Kh8 {[%emt 0:09:19]} 21. h5 {[%emt 0:06:57]} Nd8 {[%emt 0:02:53]} 22. hxg6 {[%emt 0:11:29]} hxg6 {[%emt 0:00:13]} 23. Nhf5 {[%emt 0:07:26]} gxf5 {[%emt 0:12:27]} 24. Qh5+ {[%emt 0:00:42]} Kg8 {[%emt 0:00:16]} 25. Qg6+ {[%emt 0:01:01]} Ng7 {[%emt 0:02:09]} 26. Bh6 {[%emt 0:04:47]} Rf7 {[%emt 0:00:06]} 27. Nh5 {[%emt 0:06:04]} Bf8 {[%emt 0:00:06]} 28. Nxf6+ {[%emt 0:00:49]} Rxf6 {[%emt 0:00:04]} 29. Qxf6 {[%emt 0:00:07]} Nf7 {[%emt 0:06:46]} 30. exf5 {[%emt 0:01:50]} Nxh6 {[%emt 0:01:02]} 31. Qxh6 {[%emt 0:00:06]} Bxf5 {[%emt 0:00:18]} 32. Bxf5 {[%emt 0:00:56]} Qxf5 {[%emt 0:00:09]} 33. a4 {[%emt 0:04:38]} Rb8 {[%emt 0:01:13]} 34. Qh4 {[%emt 0:03:27]} Qh5 {[%emt 0:06:44]} 35. Qe4 {[%emt 0:00:59]} Qf5 {[%emt 0:00:05]} 36. Qh4 {[%emt 0:03:03]} Qh5 {[%emt 0:00:42]} 37. Qg3 {[%emt 0:02:09]} b4 {[%emt 0:00:32]} 38. Re4 {[%emt 0:00:26]} bxc3 {[%emt 0:00:54]} 39. bxc3 {[%emt 0:00:26]} Qf5 {[%emt 0:00:30]} 40. Rxc4 {[%emt 0:00:48]} Be7 {[%emt 0:00:33]} 41. Qg4 {[%emt 0:03:10]} Qxg4 {[%emt 0:05:11]} 42. Rxg4 {[%emt 0:01:52]} Rc8 {[%emt 0:02:17]} 43. Ra3 {[%emt 0:05:41]} Rc5 {[%emt 0:08:57]} 44. c4 {[%emt 0:00:23]} Kf7 {[%emt 0:00:55]} 45. Rf3+ {[%emt 0:03:22]} Bf6 {[%emt 0:00:10]} 46. Rb3 {[%emt 0:01:04]} Nf5 {[%emt 0:01:25]} 47. Rb7+ {[%emt 0:01:38]} Be7 {[%emt 0:00:26]} 48. Re4 {[%emt 0:01:52]} Ra5 {[%emt 0:04:17]} 49. g4 {[%emt 0:09:47]} Nd4 {[%emt 0:01:22]} 50. Kg2 {[%emt 0:01:32]} Kf8 {[%emt 0:08:46]} 51. Rb8+ {[%emt 0:06:24]} Kf7 {[%emt 0:00:07]} 52. Rb7 {[%emt 0:00:04]} Kf8 {[%emt 0:00:04]} 53. Rb8+ {[%emt 0:02:12]} Kf7 {[%emt 0:00:23]} 54. Rb7 {[%emt 0:00:32]} 1/2-1/2

[Event "FIDE World Junior U20-ch Girls 2025"]
[Site "Petrovac"]
[Date "2025.02.28"]
[Round "3.29"]
[White "Tarasenka, Aliaksandra"]
[Black "Seyilhanova, Gulmira"]
[Result "1/2-1/2"]
[Annotator "ChessBase"]
[ECO "B06"]
[WhiteElo "2139"]
[BlackElo "1939"]
[PlyCount "118"]
[EventDate "2025.02.23"]
[EventType "swiss"]
[EventCountry "MNE"]
[SourceTitle "playchess.com"]
[Source "ChessBase"]
[SourceQuality "1"]
[TimeControl "40/5400+30:1800+30"]

1. e4 {[%emt 0:00:02]} g6 {[%emt 0:00:10]} 2. d4 {[%emt 0:00:08]} Bg7 {[%emt 0:00:04]} 3. Nc3 {[%emt 0:00:11]} d6 {[%emt 0:00:07]} 4. Be3 {[%emt 0:00:07]} c6 {[%emt 0:00:17]} 5. a4 {[%emt 0:00:56]} Nf6 {[%emt 0:00:53]} 6. Nf3 {[%emt 0:00:55]} O-O {[%emt 0:00:25]} 7. h3 {[%emt 0:00:23]} e5 {[%emt 0:05:24]} 8. dxe5 {[%emt 0:12:22]} dxe5 {[%emt 0:00:07]} 9. Bc5 {[%emt 0:00:39]} Re8 {[%emt 0:02:35]} 10. Qxd8 Rxd8 {[%emt 0:00:08]} 11. Bc4 {[%emt 0:19:08]} Nbd7 {[%emt 0:07:29]} 12. O-O-O {[%emt 0:12:34]} Re8 {[%emt 0:03:05]} 13. Bd6 {[%emt 0:02:02]} h6 {[%emt 0:14:36]} 14. g4 {[%emt 0:13:45]} Nh7 {[%emt 0:05:53]} 15. a5 {[%emt 0:07:24]} Nhf8 {[%emt 0:05:20]} 16. b4 {[%emt 0:03:32]} Ne6 {[%emt 0:02:26]} 17. b5 {[%emt 0:03:23]} Nd4 {[%emt 0:04:40]} 18. Rd3 {[%emt 0:03:18]} Nf8 {[%emt 0:24:03]} 19. bxc6 {[%emt 0:05:59]} bxc6 {[%emt 0:01:49]} 20. Rhd1 {[%emt 0:01:23]} Nxf3 {[%emt 0:04:39]} 21. Rxf3 {[%emt 0:01:14]} Be6 {[%emt 0:00:48]} 22. Be2 {[%emt 0:03:22]} g5 {[%emt 0:03:40]} 23. Na4 {[%emt 0:01:49]} Ng6 {[%emt 0:01:53]} 24. Nc5 {[%emt 0:04:09]} Nf4 {[%emt 0:00:13]} 25. Ba6 {[%emt 0:00:45]} Bc8 {[%emt 0:00:39]} 26. Bc4 {[%emt 0:01:22]} h5 {[%emt 0:09:31]} 27. gxh5 {[%emt 0:01:41]} Bxh3 {[%emt 0:00:08]} 28. Rg3 {[%emt 0:00:50]} Bh6 {[%emt 0:00:09]} 29. Rdg1 {[%emt 0:00:52]} Rad8 {[%emt 0:01:58]} 30. Rxg5+ {[%emt 0:00:38]} Kh7 {[%emt 0:01:18]} 31. Bxf7 {[%emt 0:00:32]} Ng2 {[%emt 0:01:01]} 32. f4 {[%emt 0:00:32]} exf4 {[%emt 0:00:24]} 33. Bg6+ {[%emt 0:00:27]} Kh8 {[%emt 0:00:35]} 34. R1xg2 {[%emt 0:01:02]} Bxg2 {[%emt 0:00:12]} 35. Rf5 {[%emt 0:00:02]} Rxd6 {[%emt 0:00:48]} 36. Bxe8 {[%emt 0:00:10]} f3+ {[%emt 0:00:11]} 37. Kb2 {[%emt 0:00:12]} Be3 {[%emt 0:00:28]} 38. Nd3 {[%emt 0:00:53]} Rxd3 {[%emt 0:00:51]} 39. cxd3 {[%emt 0:00:01]} f2 {[%emt 0:00:09]} 40. Bxc6 {[%emt 0:00:54]} f1=Q {[%emt 0:00:08]} 41. Rxf1 {[%emt 0:30:18]} Bxf1 {[%emt 0:30:03]} 42. Kc3 {[%emt 0:00:00]} Be2 {[%emt 0:00:00]} 43. Be8 {[%emt 0:00:00]} Kg7 {[%emt 0:00:00]} 44. Kc4 {[%emt 0:00:00]} Kf6 {[%emt 0:00:00]} 45. a6 {[%emt 0:00:00]} Ke5 {[%emt 0:00:00]} 46. Bf7 {[%emt 0:00:00]} Kd6 {[%emt 0:00:00]} 47. Be8 {[%emt 0:00:00]} Ke7 {[%emt 0:00:00]} 48. Bg6 {[%emt 0:00:00]} Kd7 {[%emt 0:00:00]} 49. Bf7 {[%emt 0:00:00]} Kc6 {[%emt 0:00:00]} 50. Be8+ {[%emt 0:00:00]} Kb6 {[%emt 0:00:00]} 51. Bg6 {[%emt 0:00:00]} Kc6 {[%emt 0:01:47]} 52. Be8+ {[%emt 0:00:00]} Kd6 {[%emt 0:00:31]} 53. Bf7 {[%emt 0:00:00]} Ke7 {[%emt 0:00:06]} 54. Bg6 {[%emt 0:00:00]} Kf6 {[%emt 0:00:03]} 55. Be8 {[%emt 0:00:00]} Kg5 {[%emt 0:00:13]} 56. Bf7 {[%emt 0:00:00]} Bb6 {[%emt 0:00:41]} 57. Be8 {[%emt 0:00:00]} Be3 {[%emt 0:04:35]} 58. Bf7 {[%emt 0:00:00]} Kf6 {[%emt 0:01:20]} 59. Be8 {[%emt 0:00:00]} Ke5 {[%emt 0:01:10]} 1/2-1/2